fUST/lending_fUST_20240227
["ID","MTS","AMOUNT","RATE_DAILY","PERIOD"]
[315329778,1708981842742,-500.0,0.00020547,2]
[315329781,1708981842751,-500.0,0.00020547,2]
[315329783,1708981842761,-500.0,0.00020547,2]
[315329785,1708981842770,-1235.16,0.00020547,2]
[315329787,1708981842780,-874.88,0.00020547,2]
[315329790,1708981842789,-543.94,0.00020547,2]
[315329792,1708981842798,-1518.61,0.00020547,2]
[315329794,1708981842807,-543.34,0.00020547,2]
[315329796,1708981842818,-1580.72,0.00020547,2]
[315329798,1708981842827,-500.0,0.00020547,2]
[315329800,1708981842837,-656.3,0.00020547,2]
[315329802,1708981842847,-500.0,0.00020547,2]
[315329804,1708981842856,-13827.36,0.00020547,2]
[315329807,1708981842868,-1266.2,0.00020547,2]
[315329808,1708981842877,-500.0,0.00020547,2]
[315329810,1708981842886,-772.73,0.00020547,2]
[315329812,1708981842896,-6357.38,0.00020547,2]
[315329815,1708981842906,-599.85,0.00020547,2]
[315329817,1708981842915,-500.0,0.00020547,2]
[315329818,1708981842924,-1949.59,0.00020547,2]
[315329821,1708981842934,-1009.22,0.00020547,2]
[315329823,1708981842944,-500.0,0.00020547,2]
[315329825,1708981842954,-2920.52,0.00020547,2]
[315329827,1708981842963,-635.67,0.00020547,2]
[315329829,1708981842972,-2514.92,0.00020547,2]
[315329831,1708981842982,-15646.63,0.00020547,2]
[315329833,1708981842990,-2023.73,0.00020547,2]
[315329835,1708981842999,-1549.82,0.00020547,2]
[315329836,1708981843008,-702.45,0.00020547,2]
[315329838,1708981843017,-1142.53,0.00020547,2]
[315329840,1708981843026,-1715.33,0.00020547,2]
[315329842,1708981843034,-500.0,0.00020547,2]
[315329844,1708981843043,-1761.95,0.00020547,2]
[315329846,1708981843052,-2293.23,0.00020547,2]
[315329848,1708981843062,-1906.22,0.00020547,2]
[315329850,1708981843071,-8328.94,0.00020547,2]
[315329852,1708981843080,-500.0,0.00020547,2]
[315329854,1708981843089,-500.0,0.00020547,2]
[315329856,1708981843098,-500.0,0.00020547,2]
[315329859,1708981843108,-3251.11,0.00020547,2]
[315329861,1708981843117,-2463.51589487,0.00020567,2]
[315329862,1708981843126,-500.0,0.00020573,2]
[315329865,1708981843135,-500.0,0.00020573,2]
[315329866,1708981843145,-580.70890417,0.00020573,2]
[315329868,1708981843154,-839.46405147,0.00020574,2]
[315329870,1708981843163,-227.65877711,0.00020584,2]
[315329872,1708981843172,-30299.64119152,0.00020591,2]
[315329874,1708981843182,-5738.42542508,0.00020591,2]
[315329876,1708981843191,-724.02033908,0.00020591,2]
[315329879,1708981843201,-250.46875,0.00020591,2]
[315329890,1708981843295,-3880.8169434,0.00020591,2]
[315329892,1708981843305,-2463.51589487,0.00020678,2]
[315329894,1708981843314,-70555.03502894,0.00020757,2]
[315329896,1708981843323,-70544.42944836,0.00020777,2]
[315329898,1708981843332,-943.10540557,0.00020782,2]
[315329900,1708981843341,-2463.51589487,0.00020789,2]
[315329902,1708981843350,-478.03016683,0.00020792,2]
[315329904,1708981843359,-4698.57354043,0.000208,2]
[315329906,1708981843368,-50000.0,0.00020802,2]
[315329908,1708981843377,-280.85132988,0.00020819,2]
[315329910,1708981843386,-380.79194559,0.00020819,2]
[315329912,1708981843395,-500.0,0.00020821,2]
[315329914,1708981843405,-500.0,0.00020821,2]
[315329916,1708981843414,-500.0,0.00020821,2]
[315329918,1708981843423,-500.0,0.00020821,2]
[315329920,1708981843432,-500.0,0.00020821,2]
[315329922,1708981843441,-500.0,0.00020821,2]
[315329924,1708981843449,-2193.45,0.00020821,2]
[315329926,1708981843458,-885.32,0.00020821,2]
[315329928,1708981843468,-829.89,0.00020821,2]
[315329930,1708981843476,-1165.92,0.00020821,2]
[315329932,1708981843486,-500.0,0.00020821,2]
[315329934,1708981843495,-500.0,0.00020821,2]
[315329936,1708981843504,-1027.18,0.00020821,2]
[315329938,1708981843514,-341.76252739,0.00020821,2]
[315329940,1708981843523,-500.0,0.00020821,2]
[315329942,1708981843532,-500.0,0.00020821,2]
[315329944,1708981843541,-500.0,0.00020821,2]
[315329946,1708981843550,-1235.16,0.00020821,2]
[315329948,1708981843561,-874.88,0.00020821,2]
[315329950,1708981843570,-543.94,0.00020821,2]
[315329952,1708981843579,-1518.61,0.00020821,2]
[315329954,1708981843588,-1580.72,0.00020821,2]
[315329956,1708981843597,-500.0,0.00020821,2]
[315329958,1708981843606,-656.3,0.00020821,2]
[315329960,1708981843614,-500.0,0.00020821,2]
[315329962,1708981843623,-13827.36,0.00020821,2]
[315329963,1708981843632,-1266.2,0.00020821,2]
[315329966,1708981843641,-500.0,0.00020821,2]
[315329968,1708981843651,-772.73,0.00020821,2]
[315329970,1708981843661,-6357.38,0.00020821,2]
[315329972,1708981843670,-599.85,0.00020821,2]
[315329974,1708981843678,-500.0,0.00020821,2]
[315329976,1708981843688,-1949.59,0.00020821,2]
[315329978,1708981843697,-1009.22,0.00020821,2]
[315329980,1708981843706,-500.0,0.00020821,2]
[315329982,1708981843715,-2920.52,0.00020821,2]
[315329983,1708981843724,-635.67,0.00020821,2]
[315329985,1708981843735,-2514.92,0.00020821,2]
[315329987,1708981843745,-15646.63,0.00020821,2]
[315329990,1708981843757,-2023.73,0.00020821,2]
[315329992,1708981843770,-1549.82,0.00020821,2]
[315329993,1708981843780,-702.45,0.00020821,2]
[315329996,1708981843789,-1142.53,0.00020821,2]
[315329997,1708981843799,-1715.33,0.00020821,2]
[315329998,1708981843808,-504.22081806,0.00020821,2]
[315329999,1708981843817,-1761.95,0.00020821,2]
[315330000,1708981843826,-2293.23,0.00020821,2]
[315330001,1708981843836,-1906.22,0.00020821,2]
[315330002,1708981843846,-8328.94,0.00020821,2]
[315330003,1708981843856,-500.0,0.00020821,2]
[315330004,1708981843865,-409.1306388,0.00020821,2]
[315330005,1708981843874,-500.0,0.00020821,2]
[315330006,1708981843883,-3251.11,0.00020821,2]
[315330007,1708981843892,-50000.0,0.00020847,2]
[315330008,1708981843900,-50000.0,0.00020857,2]
[315330009,1708981843910,-50000.0,0.00020892,2]
[315330010,1708981843919,-2463.51589487,0.000209,2]
[315330011,1708981843927,-50000.0,0.00020937,2]
[315330012,1708981843936,-9034.12442831,0.00020937,2]
[315330013,1708981843944,-21685.70946263,0.00020937,2]
[315330014,1708981843953,-50000.0,0.00020937,2]
[315330015,1708981843962,-166.666666,0.00020973,2]
[315330016,1708981843971,-471.63876453,0.00020998,2]
[315330017,1708981843980,-951.21450269,0.00020998,2]
[315330018,1708981843990,-290.05288383,0.00020998,2]
[315330020,1708981843999,-292.07022726,0.00020998,2]
[315330022,1708981844008,-1245.9983715,0.00020998,2]
[315330024,1708981844020,-279.31187596,0.00020998,2]
[315330026,1708981844029,-428.88796945,0.00020998,2]
[315330028,1708981844039,-538.0,0.00020998,2]
[315330030,1708981844048,-179.43256387,0.00020998,2]
[315330033,1708981844061,-589.16564622,0.00020998,2]
[315330035,1708981844070,-235.91877829,0.00020998,2]
[315330037,1708981844079,-275.35808168,0.00020998,2]
[315330039,1708981844088,-237.99635956,0.00020999,2]
[315330041,1708981844097,-160.0,0.00020999,2]
[315330043,1708981844106,-160.0,0.00020999,2]
[315330045,1708981844115,-160.0,0.00020999,2]
[315330047,1708981844124,-273.23870182,0.00020999,2]
[315330049,1708981844133,-1389.56409544,0.00020999,2]
[315330050,1708981844143,-243.03484237,0.00020999,2]
[315330053,1708981844153,-399.333294,0.00020999,2]
[315330055,1708981844163,-500.0,0.00020999,2]
[315330057,1708981844171,-500.0,0.00020999,2]
[315330058,1708981844181,-500.0,0.00020999,2]
[315330060,1708981844190,-500.0,0.00020999,2]
[315330063,1708981844199,-500.0,0.00020999,2]
[315330064,1708981844208,-500.0,0.00020999,2]
[315330066,1708981844217,-500.0,0.00020999,2]
[315330069,1708981844227,-500.0,0.00020999,2]
[315330071,1708981844236,-500.0,0.00020999,2]
[315330072,1708981844245,-500.0,0.00020999,2]
[315330074,1708981844254,-500.0,0.00020999,2]
[315330076,1708981844264,-256.44210122,0.00020999,2]
[315330078,1708981844273,-201789.71479893,0.00021,2]
[315330087,1708981844342,-500.0,0.00019178,2]
[315330089,1708981844350,-8074.52205049,0.00019442,3]
[315330442,1708981847956,-159.80558045,0.00019176,2]
[315330444,1708981847966,-155.15515516,0.00019177,2]
[315330446,1708981847975,-604.40046169,0.00019178,2]
[315330448,1708981847984,-500.0,0.00019178,2]
[315330450,1708981847993,-230.97728528,0.00019178,2]
[315330451,1708981848002,-500.0,0.00019178,2]
[315330453,1708981848012,-500.0,0.00019178,2]
[315330455,1708981848021,-3057.79794951,0.00019442,3]
[315330457,1708981848031,-500.0,0.00019452,2]
[315330459,1708981848040,-1473.20267691,0.00021,2]
[315330473,1708981848185,-3280.63406311,0.00021,2]
[315330476,1708981848200,-54252.59912951,0.00021,2]
[315331372,1708981859108,-500.0,0.00019178,2]
[315331373,1708981859142,-468.27333622,0.00019178,2]
[315331374,1708981859304,-500.0,0.00019178,2]
[315331375,1708981859330,-500.0,0.00019452,2]
[315331376,1708981859353,-8230.24916882,0.00020977,2]
[315331377,1708981859377,-9276.93,0.0002099,3]
[315331378,1708981859400,-600.33,0.0002099,3]
[315331379,1708981859423,-19702.67493575,0.00020999,2]
[315331380,1708981859447,-960221.54255921,0.00021,2]
[315331840,1708982306203,162.7360887,0.00017639,2]
[315331843,1708982416605,295.709171,0.00017407,2]
[315331844,1708982436808,2614.2440652,0.0001724,2]
[315331845,1708982490264,-744.0952955,0.0001814,2]
[315331846,1708982490292,-428.36024684,0.00018141,2]
[315331847,1708982490320,-168.81791007,0.00018144,2]
[315331848,1708982490346,-1181.91316902,0.00018241,2]
[315331849,1708982490373,-19702.67493575,0.00018243,2]
[315331850,1708982490400,-24900.0,0.00018244,2]
[315331851,1708982490426,-920.93359215,0.000189,2]
[315331852,1708982490452,-524.91,0.00019168,3]
[315331853,1708982490478,-524.95,0.00019168,3]
[315331854,1708982490505,-1213.3224013,0.00019177,2]
[315331855,1708982490531,-579.6253241,0.00019178,2]
[315331856,1708982490557,-500.0,0.00019178,2]
[315331857,1708982490582,-500.0,0.00019178,2]
[315331858,1708982490609,-500.0,0.00019178,2]
[315331859,1708982490636,-477.02525582,0.00019178,2]
[315331860,1708982490663,-500.0,0.00019178,2]
[315331861,1708982490689,-500.0,0.00019178,2]
[315331862,1708982490717,-500.0,0.00019178,2]
[315331863,1708982490743,-2094.04,0.00019178,2]
[315331864,1708982490770,-500.0,0.00019178,2]
[315331865,1708982490796,-500.0,0.00019178,2]
[315331866,1708982490823,-500.0,0.00019178,2]
[315331867,1708982490852,-500.0,0.00019178,2]
[315331868,1708982490879,-873.54,0.00019178,2]
[315331869,1708982490905,-405.01042295,0.00019178,2]
[315331870,1708982490933,-500.0,0.00019178,2]
[315331871,1708982490960,-500.0,0.00019178,2]
[315331872,1708982490988,-500.0,0.00019178,2]
[315331873,1708982491015,-500.44818436,0.00019178,2]
[315331874,1708982491042,-500.97281451,0.00019178,2]
[315331875,1708982491071,-1131.96,0.00019178,2]
[315331876,1708982491111,-500.0,0.00019178,2]
[315331877,1708982491138,-500.0,0.00019178,2]
[315331878,1708982491164,-500.0,0.00019178,2]
[315331879,1708982491194,-500.0,0.00019178,2]
[315331880,1708982491219,-500.0,0.00019178,2]
[315331881,1708982491245,-500.0,0.00019178,2]
[315331882,1708982491271,-500.63179742,0.00019178,2]
[315331883,1708982491298,-500.0,0.00019178,2]
[315331884,1708982491324,-500.0,0.00019178,2]
[315331885,1708982491350,-500.31385956,0.00019178,2]
[315331886,1708982491377,-500.0,0.00019178,2]
[315331887,1708982491403,-500.0,0.00019178,2]
[315331888,1708982491433,-500.0,0.00019178,2]
[315331889,1708982491458,-500.0,0.00019178,2]
[315331890,1708982491485,-500.0,0.00019178,2]
[315331891,1708982491512,-500.0,0.00019178,2]
[315331892,1708982491537,-501.03228653,0.00019178,2]
[315331893,1708982491564,-614.77234965,0.00019178,2]
[315331894,1708982491589,-500.0,0.00019178,2]
[315331895,1708982491618,-500.0,0.00019178,2]
[315331896,1708982491644,-500.0,0.00019178,2]
[315331897,1708982491670,-500.0,0.00019178,2]
[315331898,1708982491697,-500.0,0.00019178,2]
[315331899,1708982491726,-505.1273313,0.00019178,2]
[315331900,1708982491753,-500.0,0.00019178,2]
[315331901,1708982491782,-500.0,0.00019178,2]
[315331902,1708982491809,-366.98124146,0.00019178,2]
[315331903,1708982491836,-500.0,0.00019178,2]
[315331904,1708982491863,-500.0,0.00019178,2]
[315331905,1708982491891,-1221.05,0.00019178,2]
[315331906,1708982491921,-500.0,0.00019178,2]
[315331907,1708982491952,-500.0,0.00019178,2]
[315331908,1708982491982,-500.53523058,0.00019178,2]
[315331909,1708982492010,-500.0,0.00019178,2]
[315331910,1708982492037,-500.85052804,0.00019178,2]
[315331911,1708982492064,-502.22210749,0.00019178,2]
[315331912,1708982492090,-500.0,0.00019178,2]
[315331913,1708982492115,-410.8097078,0.00019178,2]
[315331914,1708982492141,-500.0,0.00019178,2]
[315331915,1708982492166,-500.0,0.00019178,2]
[315331916,1708982492192,-500.0,0.00019178,2]
[315331917,1708982492219,-501.49214266,0.00019178,2]
[315331918,1708982492245,-501.43554536,0.00019178,2]
[315331919,1708982492271,-500.0,0.00019178,2]
[315331920,1708982492399,-500.0,0.00019178,2]
[315331921,1708982492427,-985.29,0.00019178,2]
[315331922,1708982492455,-500.0,0.00019178,2]
[315331923,1708982492482,-500.0,0.00019178,2]
[315331924,1708982492507,-500.0,0.00019178,2]
[315331925,1708982492532,-500.0,0.00019178,2]
[315331926,1708982492557,-500.0,0.00019178,2]
[315331927,1708982492584,-500.0,0.00019178,2]
[315331928,1708982492610,-500.0,0.00019178,2]
[315331929,1708982492637,-500.0,0.00019178,2]
[315331930,1708982492666,-500.0,0.00019178,2]
[315331931,1708982492692,-500.0,0.00019178,2]
[315331932,1708982492721,-500.0,0.00019178,2]
[315331933,1708982492749,-500.0,0.00019178,2]
[315331934,1708982492776,-500.0,0.00019178,2]
[315331935,1708982492803,-612.59126247,0.00019178,2]
[315331936,1708982492830,-399.76696753,0.00019178,2]
[315331937,1708982492857,-500.0,0.00019178,2]
[315331938,1708982492884,-500.0,0.00019178,2]
[315331939,1708982492910,-500.0,0.00019178,2]
[315331940,1708982492935,-500.0,0.00019178,2]
[315331941,1708982492944,-244.0952955,0.00019178,2]
[315331942,1708982492955,-428.36024684,0.00019178,2]
[315331943,1708982492968,-168.81791007,0.00019178,2]
[315331944,1708982492980,-627.02654759,0.00019178,2]
[315331945,1708982492989,-554.88662143,0.00019178,2]
[315331946,1708982493006,-344.36337857,0.00019178,2]
[315331947,1708982493015,-500.0,0.00019178,2]
[315331948,1708982493024,-500.55631999,0.00019178,2]
[315331949,1708982493034,-500.0,0.00019178,2]
[315331950,1708982493043,-500.0,0.00019178,2]
[315331951,1708982493052,-500.0,0.00019178,2]
[315331952,1708982493062,-637.91,0.00019178,2]
[315331953,1708982493071,-500.0,0.00019178,2]
[315331954,1708982493081,-235.35725535,0.00019178,2]
[315331955,1708982493090,-1681.64,0.00019178,2]
[315331956,1708982493100,-500.0,0.00019178,2]
[315331957,1708982493109,-500.0,0.00019178,2]
[315331958,1708982493119,-500.0,0.00019178,2]
[315331959,1708982493128,-640.94855837,0.00019178,2]
[315331960,1708982493139,-503.07483176,0.00019178,2]
[315331961,1708982493148,-500.0,0.00019178,2]
[315331962,1708982493157,-500.0,0.00019178,2]
[315331963,1708982493166,-541.55,0.00019178,2]
[315331964,1708982493176,-500.0,0.00019178,2]
[315331965,1708982493185,-500.71576396,0.00019178,2]
[315331966,1708982493195,-500.0,0.00019178,2]
[315331967,1708982493204,-303.39597932,0.00019178,2]
[315331968,1708982493214,-500.0,0.00019178,2]
[315331969,1708982493224,-500.0,0.00019178,2]
[315331970,1708982493234,-571.9240967,0.00019178,2]
[315331971,1708982493243,-500.0,0.00019178,2]
[315331972,1708982493252,-500.0,0.00019178,2]
[315331973,1708982493262,-500.0,0.00019178,2]
[315331974,1708982493271,-500.0,0.00019178,2]
[315331975,1708982493281,-500.0,0.00019178,2]
[315331976,1708982493290,-500.0,0.00019178,2]
[315331977,1708982493299,-536.61,0.00019178,2]
[315331978,1708982493309,-2704.62875173,0.00019178,2]
[315331979,1708982493321,-4930.31124827,0.00019178,2]
[315331980,1708982493331,-500.0,0.00019178,2]
[315331981,1708982493341,-500.0,0.00019178,2]
[315331982,1708982493351,-1608.87,0.00019178,2]
[315331983,1708982493360,-2095.77,0.00019178,2]
[315331984,1708982493369,-971.86,0.00019178,2]
[315331985,1708982493378,-500.0,0.00019178,2]
[315331986,1708982493388,-220.42165296,0.00019178,2]
[315331987,1708982493397,-496.85137534,0.00019178,2]
[315331988,1708982493408,-500.0,0.00019178,2]
[315331989,1708982493417,-500.0,0.00019178,2]
[315331990,1708982493426,-500.0,0.00019178,2]
[315331991,1708982493436,-2987.96,0.00019178,2]
[315331992,1708982493446,-500.0,0.00019178,2]
[315331993,1708982493455,-500.0,0.00019178,2]
[315331994,1708982493466,-500.0,0.00019178,2]
[315331995,1708982493478,-7087.95572343,0.00019178,2]
[315331996,1708982493490,-920.93359215,0.00019178,2]
[315331997,1708982493502,-524.91,0.00019178,2]
[315331998,1708982493513,-524.95,0.00019178,2]
[315331999,1708982493524,-1213.3224013,0.00019178,2]
[315332000,1708982493536,-579.6253241,0.00019178,2]
[315332001,1708982493547,-500.0,0.00019178,2]
[315332002,1708982493559,-500.0,0.00019178,2]
[315332003,1708982493571,-500.0,0.00019178,2]
[315332004,1708982493583,-477.02525582,0.00019178,2]
[315332005,1708982493600,-500.0,0.00019178,2]
[315332006,1708982493612,-500.0,0.00019178,2]
[315332007,1708982493630,-415.9477032,0.00019178,2]
[315332008,1708982493641,-84.0522968,0.00019178,2]
[315332009,1708982493734,-416.68946468,0.00019178,2]
[315332010,1708982493744,-500.0,0.00019178,2]
[315332011,1708982493755,-500.0,0.00019178,2]
[315332012,1708982493764,-500.0,0.00019178,2]
[315332013,1708982493775,-177.35053532,0.00019178,2]
[315332014,1708982493804,-219.36028657,0.00019178,2]
[315332015,1708982493814,-280.63971343,0.00019178,2]
[315332016,1708982493825,-500.0,0.00019178,2]
[315332017,1708982493837,-382.60028657,0.00019178,2]
[315332018,1708982493847,-117.39971343,0.00019178,2]
[315332019,1708982493859,-382.60028657,0.00019178,2]
[315332020,1708982493869,-117.39971343,0.00019178,2]
[315332021,1708982493880,-382.60028657,0.00019178,2]
[315332022,1708982493890,-490.93971343,0.00019178,2]
[315332023,1708982493902,-10.30232646,0.00019178,2]
[315332024,1708982493911,-394.70809649,0.00019178,2]
[315332025,1708982493923,-368.91190351,0.00019178,2]
[315332026,1708982493937,-131.08809649,0.00019178,2]
[315332027,1708982493957,-368.91190351,0.00019178,2]
[315332028,1708982493966,-131.08809649,0.00019178,2]
[315332029,1708982494057,-368.91190351,0.00019178,2]
[315332030,1708982494067,-131.08809649,0.00019178,2]
[315332031,1708982494080,-368.91190351,0.00019178,2]
[315332032,1708982494090,-131.53628085,0.00019178,2]
[315332033,1708982494106,-500.97281451,0.00019178,2]
[315332034,1708982494117,-1131.96,0.00019178,2]
[315332035,1708982494129,-500.0,0.00019178,2]
[315332036,1708982494140,-500.0,0.00019178,2]
[315332037,1708982494152,-500.0,0.00019178,2]
[315332038,1708982494163,-500.0,0.00019178,2]
[315332039,1708982494176,-500.0,0.00019178,2]
[315332040,1708982494192,-500.0,0.00019178,2]
[315332041,1708982494203,-500.63179742,0.00019178,2]
[315332042,1708982494215,-476.01910722,0.00019178,2]
[315332043,1708982494226,-23.98089278,0.00019178,2]
[315332044,1708982494238,-492.14502375,0.00019178,2]
[315332045,1708982494247,-7.85497625,0.00019178,2]
[315332046,1708982494258,-500.31385956,0.00019178,2]
[315332047,1708982494276,-500.0,0.00019178,2]
[315332048,1708982494288,-500.0,0.00019178,2]
[315332049,1708982494300,-116.49116419,0.00019178,2]
[315332050,1708982494309,-383.50883581,0.00019178,2]
[315332051,1708982494321,-116.49116419,0.00019178,2]
[315332052,1708982494330,-383.50883581,0.00019178,2]
[315332053,1708982494341,-500.0,0.00019178,2]
[315332054,1708982494361,-500.0,0.00019178,2]
[315332055,1708982494374,-84.08116419,0.00019178,2]
[315332056,1708982494384,-416.95112234,0.00019178,2]
[315332057,1708982494396,-83.04887766,0.00019178,2]
[315332058,1708982494405,-500.0,0.00019178,2]
[315332059,1708982494414,-31.72347199,0.00019178,2]
[315332060,1708982494425,-500.0,0.00019178,2]
[315332061,1708982494441,-392.62652801,0.00019178,2]
[315332062,1708982494450,-107.37347199,0.00019178,2]
[315332063,1708982494462,-392.62652801,0.00019178,2]
[315332064,1708982494472,-107.37347199,0.00019178,2]
[315332065,1708982494483,-393.3912684,0.00019178,2]
[315332066,1708982494492,-106.6087316,0.00019178,2]
[315332067,1708982494510,-393.3912684,0.00019178,2]
[315332068,1708982494519,-106.6087316,0.00019178,2]
[315332069,1708982494531,-478.0512684,0.00019178,2]
[315332070,1708982494541,-27.0760629,0.00019178,2]
[315332071,1708982494553,-214.7456581,0.00019178,2]
[315332072,1708982494562,-285.2543419,0.00019178,2]
[315332073,1708982494573,-214.7456581,0.00019178,2]
[315332074,1708982494583,-285.2543419,0.00019178,2]
[315332075,1708982494595,-214.7456581,0.00019178,2]
[315332076,1708982494604,-152.23558336,0.00019178,2]
[315332077,1708982494616,-500.0,0.00019178,2]
[315332078,1708982494627,-500.0,0.00019178,2]
[315332079,1708982494638,-1221.05,0.00019178,2]
[315332080,1708982494650,-60.47441664,0.00019178,2]
[315332081,1708982494660,-439.52558336,0.00019178,2]
[315332082,1708982494678,-500.0,0.00019178,2]
[315332083,1708982494691,-500.53523058,0.00019178,2]
[315332084,1708982494703,-500.0,0.00019178,2]
[315332085,1708982494715,-500.85052804,0.00019178,2]
[315332086,1708982494728,-502.22210749,0.00019178,2]
[315332087,1708982494739,-500.0,0.00019178,2]
[315332088,1708982494750,-410.8097078,0.00019178,2]
[315332089,1708982494762,-500.0,0.00019178,2]
[315332090,1708982494777,-500.0,0.00019178,2]
[315332091,1708982494790,-500.0,0.00019178,2]
[315332092,1708982494807,-501.49214266,0.00019178,2]
[315332093,1708982494818,-501.43554536,0.00019178,2]
[315332094,1708982494830,-500.0,0.00019178,2]
[315332095,1708982494841,-500.0,0.00019178,2]
[315332096,1708982494853,-985.29,0.00019178,2]
[315332097,1708982494869,-500.0,0.00019178,2]
[315332098,1708982494880,-500.0,0.00019178,2]
[315332099,1708982494900,-155.15515516,0.00018139,2]
[315332100,1708982494909,-344.84484484,0.00019178,2]
[315332101,1708982494921,-500.0,0.00019178,2]
[315332102,1708982494934,-500.0,0.00019178,2]
[315332103,1708982495041,-500.0,0.00019178,2]
[315332104,1708982495060,-500.0,0.00019178,2]
[315332105,1708982495072,-500.0,0.00019178,2]
[315332106,1708982495108,-500.0,0.00019178,2]
[315332107,1708982495121,-500.0,0.00019178,2]
[315332108,1708982495139,-244.66430987,0.00019178,2]
[315332109,1708982495149,-255.33569013,0.00019178,2]
[315332110,1708982495162,-244.66430987,0.00019178,2]
[315332111,1708982495172,-255.33569013,0.00019178,2]
[315332112,1708982495185,-500.0,0.00019178,2]
[315332113,1708982495197,-612.59126247,0.00019178,2]
[315332114,1708982495209,-399.76696753,0.00019178,2]
[315332115,1708982495222,-96.53607987,0.00019178,2]
[315332116,1708982495232,-403.46392013,0.00019178,2]
[315332117,1708982495245,-131.34031223,0.00019178,2]
[315332118,1708982495255,-368.65968777,0.00019178,2]
[315332119,1708982495268,-500.0,0.00019178,2]
[315332120,1708982495280,-431.99617956,0.00019178,2]
[315332124,1708982904178,160.1207913,0.00018007,2]
[315332179,1708982981113,2942.751246,0.00017535,2]
[315332181,1708982999714,366.415446,0.00017535,2]
[315332291,1708983033599,-281.44189552,0.00018207,2]
[315332293,1708983033610,-155.15515516,0.00018207,2]
[315332295,1708983033620,-300.77936664,0.00018208,2]
[315332298,1708983033631,-883.13049723,0.00018208,2]
[315332300,1708983033641,-159.80558045,0.00018208,2]
[315332302,1708983033651,-285.0,0.00018219,2]
[315332304,1708983033662,-19702.67493575,0.0001822,2]
[315332307,1708983033673,-19564.16212698,0.00018221,2]
[315332309,1708983033685,-355.0717394,0.00018221,2]
[315332312,1708983033698,-4980.76613362,0.00018221,2]
[315332314,1708983033708,-201.13960911,0.000188,3]
[315332315,1708983033719,-403.47420955,0.000189,2]
[315332316,1708983033732,-374.76264656,0.000189,2]
[315332318,1708983033744,-473.83415027,0.000189,2]
[315332319,1708983033757,-2238.52521842,0.000189,2]
[315332320,1708983033768,-155.15515516,0.00019,2]
[315332322,1708983033778,-701.46,0.00019168,3]
[315332324,1708983033788,-350.73,0.00019168,3]
[315332326,1708983033799,-175.37,0.00019168,3]
[315332328,1708983033810,-262.66,0.00019168,3]
[315332330,1708983033821,-788.03,0.00019168,3]
[315332332,1708983033831,-500.0,0.00019178,2]
[315332334,1708983033842,-500.0,0.00019178,2]
[315332336,1708983033852,-500.0,0.00019178,2]
[315332338,1708983033863,-500.0,0.00019178,2]
[315332340,1708983033873,-500.0,0.00019178,2]
[315332342,1708983033884,-196.50906257,0.00019178,2]
[315332343,1708983033894,-518.49613271,0.00019178,2]
[315332345,1708983033905,-500.0,0.00019178,2]
[315332347,1708983033916,-500.60648921,0.00019178,2]
[315332349,1708983033926,-500.0,0.00019178,2]
[315332351,1708983033936,-500.0,0.00019178,2]
[315332352,1708983033947,-500.0,0.00019178,2]
[315332353,1708983033957,-500.0,0.00019178,2]
[315332355,1708983033968,-29.76226227,0.00019178,2]
[315332358,1708983033982,-470.23773773,0.00019178,2]
[315332360,1708983033992,-500.0,0.00019178,2]
[315332362,1708983034003,-500.0,0.00019178,2]
[315332364,1708983034013,-500.0,0.00019178,2]